[Event "Titled Tuesday Blitz April 11 Early 2023"]
[White "Kumala, Aleksander"]
[Black "Harsh Suresh"]
[WhiteFideId "1141880"]
[BlackFideId "45018464"]
[WhiteElo "2269"]
[BlackElo "2227"]
[Result "0-1"]
[Round "11"]
[TimeControl "180+2"]
[Date "2023.04.11"]
[WhiteClock "0:00:03"]
[BlackClock "0:00:10"]

1. d4 {[%clk 0:03:00]}  g6 {[%clk 0:02:59]} 2. e4 {[%clk 0:03:00]}  Nf6 {[%clk 0:02:59]} 3. e5 {[%clk 0:03:00]}  Nh5 {[%clk 0:02:59]} 4. Be2 {[%clk 0:03:01]}  d6 {[%clk 0:02:59]} 5. Bxh5 {[%clk 0:02:59]}  gxh5 {[%clk 0:03:00]} 6. Qxh5 {[%clk 0:02:57]}  dxe5 {[%clk 0:03:00]} 7. dxe5 {[%clk 0:02:50]}  Qd5 {[%clk 0:02:58]} 8. Nf3 {[%clk 0:02:45]}  Qe4+ {[%clk 0:02:50]} 9. Be3 {[%clk 0:02:43]}  Qxc2 {[%clk 0:02:49]} 10. Nbd2 {[%clk 0:02:32]}  Qg6 {[%clk 0:02:45]} 11. Qh4 {[%clk 0:02:26]}  Qg4 {[%clk 0:02:25]} 12. Qxg4 {[%clk 0:02:26]}  Bxg4 {[%clk 0:02:26]} 13. Rc1 {[%clk 0:02:24]}  c6 {[%clk 0:02:26]} 14. h3 {[%clk 0:02:18]}  Bf5 {[%clk 0:02:23]} 15. Nd4 {[%clk 0:02:06]}  Bg6 {[%clk 0:02:20]} 16. e6 {[%clk 0:02:06]}  Bg7 {[%clk 0:02:17]} 17. exf7+ {[%clk 0:02:02]}  Kxf7 {[%clk 0:02:17]} 18. O-O {[%clk 0:02:01]}  Rd8 {[%clk 0:02:16]} 19. N2f3 {[%clk 0:01:57]}  h6 {[%clk 0:01:58]} 20. Rfd1 {[%clk 0:01:54]}  Na6 {[%clk 0:01:56]} 21. Bf4 {[%clk 0:01:44]}  Rd5 {[%clk 0:01:48]} 22. Ne2 {[%clk 0:01:24]}  Rad8 {[%clk 0:01:19]} 23. Rxd5 {[%clk 0:01:23]}  Rxd5 {[%clk 0:01:20]} 24. Nc3 {[%clk 0:01:09]}  Ra5 {[%clk 0:01:03]} 25. a3 {[%clk 0:01:07]}  Nc5 {[%clk 0:01:03]} 26. b4 {[%clk 0:01:05]}  Nd3 {[%clk 0:01:03]} 27. bxa5 {[%clk 0:01:01]}  Nxc1 {[%clk 0:01:03]} 28. Bxc1 {[%clk 0:01:02]}  Bxc3 {[%clk 0:01:03]} 29. Bxh6 {[%clk 0:01:03]}  Bxa5 {[%clk 0:01:02]} 30. Ne5+ {[%clk 0:00:59]}  Kf6 {[%clk 0:01:02]} 31. Nd7+ {[%clk 0:00:59]}  Kf5 {[%clk 0:00:57]} 32. g4+ {[%clk 0:00:59]}  Ke4 {[%clk 0:00:53]} 33. Nc5+ {[%clk 0:00:56]}  Kd5 {[%clk 0:00:46]} 34. Nxb7 {[%clk 0:00:53]}  Bb6 {[%clk 0:00:46]} 35. h4 {[%clk 0:00:38]}  c5 {[%clk 0:00:40]} 36. h5 {[%clk 0:00:39]}  Be4 {[%clk 0:00:38]} 37. Bf4 {[%clk 0:00:20]}  Kc6 {[%clk 0:00:33]} 38. g5 {[%clk 0:00:17]}  Kxb7 {[%clk 0:00:24]} 39. g6 {[%clk 0:00:15]}  Bc7 {[%clk 0:00:18]} 40. Bg5 {[%clk 0:00:04]}  Bd6 {[%clk 0:00:15]} 41. f3 {[%clk 0:00:04]}  Bf5 {[%clk 0:00:13]} 42. Kf2 {[%clk 0:00:03]}  Kc6 {[%clk 0:00:13]} 43. Ke3 {[%clk 0:00:04]}  Kd5 {[%clk 0:00:14]} 44. g7 {[%clk 0:00:04]}  Bh7 {[%clk 0:00:12]} 45. f4 {[%clk 0:00:03]}  c4 {[%clk 0:00:11]} 46. h6 {[%clk 0:00:02]}  Bxa3 {[%clk 0:00:11]} 47. Kd2 {[%clk 0:00:02]}  Bb4+ {[%clk 0:00:11]} 48. Kc1 {[%clk 0:00:02]}  a5 {[%clk 0:00:10]} 49. f5 {[%clk 0:00:02]}  a4 {[%clk 0:00:10]} 50. f6 {[%clk 0:00:02]}  exf6 {[%clk 0:00:11]} 51. Bxf6 {[%clk 0:00:03]}  c3 {[%clk 0:00:11]} 52. Kd1 {[%clk 0:00:01]}  Kc4 {[%clk 0:00:10]} 53. Ke2 {[%clk 0:00:01]}  a3 {[%clk 0:00:11]} 54. Ke3 {[%clk 0:00:02]}  a2 {[%clk 0:00:11]} 55. Kf4 {[%clk 0:00:02]}  a1=Q {[%clk 0:00:11]} 56. Ke5 {[%clk 0:00:03]}  c2+ {[%clk 0:00:11]} 57. Ke6 {[%clk 0:00:03]}  Bg8+ {[%clk 0:00:11]} 58. Kd7 {[%clk 0:00:03]}  Qxf6 {[%clk 0:00:10]} 59. h7 {[%clk 0:00:02]}  Qd6+ {[%clk 0:00:10]} 60. Ke8 {[%clk 0:00:03]}  Qe7# {[%clk 0:00:10]} 0-1


[Site "https://www.chess.com"]

[Event "Titled Tuesday Blitz April 11 Early 2023"]
[White "Bacrot, Etienne"]
[Black "Kaidanov, Gregory"]
[WhiteFideId "605506"]
[BlackFideId "2008564"]
[WhiteElo "2663"]
[BlackElo "2547"]
[Result "1-0"]
[Round "11"]
[TimeControl "180+2"]
[Date "2023.04.11"]
[WhiteClock "0:00:07"]
[BlackClock "0:00:30"]

1. e4 {[%clk 0:03:00]}  e5 {[%clk 0:02:59]} 2. Nf3 {[%clk 0:03:00]}  Nc6 {[%clk 0:02:59]} 3. Bb5 {[%clk 0:02:59]}  a6 {[%clk 0:02:59]} 4. Ba4 {[%clk 0:02:59]}  Nf6 {[%clk 0:02:59]} 5. O-O {[%clk 0:02:59]}  b5 {[%clk 0:02:59]} 6. Bb3 {[%clk 0:02:59]}  Bb7 {[%clk 0:03:00]} 7. d3 {[%clk 0:02:57]}  Be7 {[%clk 0:02:59]} 8. Nc3 {[%clk 0:02:57]}  O-O {[%clk 0:03:00]} 9. a4 {[%clk 0:02:57]}  b4 {[%clk 0:02:59]} 10. Nd5 {[%clk 0:02:57]}  Na5 {[%clk 0:02:57]} 11. Nxe7+ {[%clk 0:02:55]}  Qxe7 {[%clk 0:02:58]} 12. Ba2 {[%clk 0:02:56]}  d5 {[%clk 0:02:51]} 13. exd5 {[%clk 0:02:53]}  Bxd5 {[%clk 0:02:48]} 14. Bxd5 {[%clk 0:02:50]}  Nxd5 {[%clk 0:02:48]} 15. Re1 {[%clk 0:02:51]}  f6 {[%clk 0:02:44]} 16. c4 {[%clk 0:02:11]}  bxc3 {[%clk 0:02:42]} 17. bxc3 {[%clk 0:02:11]}  c5 {[%clk 0:02:38]} 18. Qc2 {[%clk 0:02:06]}  Kh8 {[%clk 0:02:33]} 19. Rb1 {[%clk 0:01:54]}  Rfc8 {[%clk 0:02:26]} 20. Bd2 {[%clk 0:01:51]}  Qc7 {[%clk 0:02:11]} 21. h4 {[%clk 0:01:45]}  Re8 {[%clk 0:02:03]} 22. h5 {[%clk 0:01:45]}  Rab8 {[%clk 0:01:46]} 23. h6 {[%clk 0:01:44]}  g6 {[%clk 0:01:45]} 24. Qa2 {[%clk 0:01:00]}  Rxb1 {[%clk 0:01:41]} 25. Rxb1 {[%clk 0:00:59]}  c4 {[%clk 0:01:40]} 26. dxc4 {[%clk 0:00:45]}  Nxc4 {[%clk 0:01:36]} 27. Be1 {[%clk 0:00:31]}  Kg8 {[%clk 0:01:36]} 28. Rd1 {[%clk 0:00:29]}  Qc6 {[%clk 0:01:34]} 29. Qb3 {[%clk 0:00:24]}  Kf7 {[%clk 0:01:28]} 30. Nd2 {[%clk 0:00:22]}  Na5 {[%clk 0:01:23]} 31. Qa2 {[%clk 0:00:22]}  Re6 {[%clk 0:01:21]} 32. Ne4 {[%clk 0:00:12]}  Nc4 {[%clk 0:01:19]} 33. Qe2 {[%clk 0:00:11]}  Re7 {[%clk 0:01:10]} 34. Qxc4 {[%clk 0:00:11]}  Qxc4 {[%clk 0:01:08]} 35. Nd6+ {[%clk 0:00:11]}  Ke6 {[%clk 0:01:08]} 36. Nxc4 {[%clk 0:00:12]}  Rc7 {[%clk 0:01:09]} 37. Ne3 {[%clk 0:00:09]}  Nxc3 {[%clk 0:01:09]} 38. Bxc3 {[%clk 0:00:09]}  Rxc3 {[%clk 0:01:09]} 39. Rb1 {[%clk 0:00:09]}  Rc6 {[%clk 0:01:08]} 40. Rb7 {[%clk 0:00:09]}  f5 {[%clk 0:01:06]} 41. Rxh7 {[%clk 0:00:09]}  Kf6 {[%clk 0:01:06]} 42. Ra7 {[%clk 0:00:08]}  Kg5 {[%clk 0:00:59]} 43. h7 {[%clk 0:00:07]}  Rc8 {[%clk 0:00:59]} 44. Rxa6 {[%clk 0:00:06]}  Rh8 {[%clk 0:00:59]} 45. Ra7 {[%clk 0:00:06]}  f4 {[%clk 0:00:58]} 46. Nd5 {[%clk 0:00:06]}  e4 {[%clk 0:00:59]} 47. a5 {[%clk 0:00:06]}  f3 {[%clk 0:00:56]} 48. gxf3 {[%clk 0:00:06]}  exf3 {[%clk 0:00:55]} 49. a6 {[%clk 0:00:06]}  Kg4 {[%clk 0:00:56]} 50. Re7 {[%clk 0:00:05]}  Kh3 {[%clk 0:00:55]} 51. a7 {[%clk 0:00:04]}  Rc8 {[%clk 0:00:54]} 52. Nf4+ {[%clk 0:00:04]}  Kg4 {[%clk 0:00:54]} 53. Nxg6 {[%clk 0:00:04]}  Rc1+ {[%clk 0:00:51]} 54. Kh2 {[%clk 0:00:03]}  Rc5 {[%clk 0:00:40]} 55. Ne5+ {[%clk 0:00:02]}  Kf4 {[%clk 0:00:38]} 56. Nxf3 {[%clk 0:00:03]}  Rh5+ {[%clk 0:00:37]} 57. Kg2 {[%clk 0:00:03]}  Rh6 {[%clk 0:00:37]} 58. h8=Q {[%clk 0:00:03]}  Rg6+ {[%clk 0:00:38]} 59. Kf1 {[%clk 0:00:02]}  Kf5 {[%clk 0:00:31]} 60. Nh4+ {[%clk 0:00:02]}  Kg4 {[%clk 0:00:31]} 61. Qh5+ {[%clk 0:00:02]}  Kxh5 {[%clk 0:00:30]} 62. Nxg6 {[%clk 0:00:02]}  Kg5 {[%clk 0:00:30]} 63. Rb7 {[%clk 0:00:03]}  Kf6 {[%clk 0:00:30]} 64. Nf4 {[%clk 0:00:03]}  Kg5 {[%clk 0:00:31]} 65. Ne2 {[%clk 0:00:04]}  Kg4 {[%clk 0:00:31]} 66. Ng1 {[%clk 0:00:04]}  Kf4 {[%clk 0:00:30]} 67. a8=Q {[%clk 0:00:05]}  Ke5 {[%clk 0:00:31]} 68. Qa6 {[%clk 0:00:05]}  Kd4 {[%clk 0:00:32]} 69. Rb4+ {[%clk 0:00:06]}  Kc3 {[%clk 0:00:30]} 70. Qa3+ {[%clk 0:00:06]}  Kc2 {[%clk 0:00:30]} 71. Rb2+ {[%clk 0:00:07]} 1-0


[Site "https://www.chess.com"]

[Event "Titled Tuesday Blitz April 11 Early 2023"]
[White "Gabrielian, Artur"]
[Black "Vakhidov, Shahzod"]
[WhiteFideId "4131002"]
[BlackFideId "14205270"]
[WhiteElo "2432"]
[BlackElo "2212"]
[Result "1-0"]
[Round "11"]
[TimeControl "180+2"]
[Date "2023.04.11"]
[WhiteClock "0:00:14"]
[BlackClock "0:00:04"]

1. e4 {[%clk 0:03:00]}  c5 {[%clk 0:02:58]} 2. Nf3 {[%clk 0:03:00]}  g6 {[%clk 0:02:57]} 3. d4 {[%clk 0:02:58]}  cxd4 {[%clk 0:02:58]} 4. Nxd4 {[%clk 0:02:59]}  Bg7 {[%clk 0:02:58]} 5. c4 {[%clk 0:02:59]}  Nc6 {[%clk 0:02:57]} 6. Be3 {[%clk 0:02:59]}  Nf6 {[%clk 0:02:57]} 7. Nc3 {[%clk 0:02:59]}  O-O {[%clk 0:02:57]} 8. Be2 {[%clk 0:02:58]}  d6 {[%clk 0:02:58]} 9. O-O {[%clk 0:02:57]}  Bd7 {[%clk 0:02:58]} 10. Qd2 {[%clk 0:02:57]}  Nxd4 {[%clk 0:02:58]} 11. Bxd4 {[%clk 0:02:57]}  Bc6 {[%clk 0:02:58]} 12. f3 {[%clk 0:02:57]}  a5 {[%clk 0:02:59]} 13. b3 {[%clk 0:02:57]}  Nd7 {[%clk 0:02:59]} 14. Bf2 {[%clk 0:02:58]}  Nc5 {[%clk 0:02:59]} 15. Rab1 {[%clk 0:02:57]}  e6 {[%clk 0:02:59]} 16. Rfd1 {[%clk 0:02:56]}  Be5 {[%clk 0:02:59]} 17. Nb5 {[%clk 0:02:57]}  Bxb5 {[%clk 0:02:41]} 18. cxb5 {[%clk 0:02:57]}  Qf6 {[%clk 0:02:17]} 19. g3 {[%clk 0:02:14]}  b6 {[%clk 0:02:04]} 20. Qe3 {[%clk 0:02:12]}  Qe7 {[%clk 0:01:56]} 21. Rd2 {[%clk 0:02:09]}  f5 {[%clk 0:01:54]} 22. exf5 {[%clk 0:02:07]}  Rxf5 {[%clk 0:01:54]} 23. Rbd1 {[%clk 0:02:06]}  Raf8 {[%clk 0:01:52]} 24. f4 {[%clk 0:02:03]}  d5 {[%clk 0:01:26]} 25. Bg4 {[%clk 0:01:55]}  Bxf4 {[%clk 0:01:06]} 26. gxf4 {[%clk 0:01:53]}  Rxf4 {[%clk 0:01:06]} 27. Bxe6+ {[%clk 0:00:41]}  Nxe6 {[%clk 0:00:53]} 28. Bg3 {[%clk 0:00:37]}  Re4 {[%clk 0:00:49]} 29. Qxb6 {[%clk 0:00:27]}  Ng5 {[%clk 0:00:49]} 30. Kh1 {[%clk 0:00:14]}  Re2 {[%clk 0:00:38]} 31. Qd4 {[%clk 0:00:14]}  Nf3 {[%clk 0:00:22]} 32. Qxd5+ {[%clk 0:00:14]}  Kg7 {[%clk 0:00:06]} 33. Rxe2 {[%clk 0:00:14]}  Qxe2 {[%clk 0:00:06]} 34. Qd3 {[%clk 0:00:14]}  Qxa2 {[%clk 0:00:02]} 35. b6 {[%clk 0:00:14]}  h5 {[%clk 0:00:03]} 36. b7 {[%clk 0:00:14]}  h4 {[%clk 0:00:03]} 37. b8=Q {[%clk 0:00:14]}  hxg3 {[%clk 0:00:04]} 38. Qxg3 {[%clk 0:00:14]} 1-0


[Site "https://www.chess.com"]

[Event "Titled Tuesday Blitz April 11 Early 2023"]
[White "Srihari L R"]
[Black "Rosen, Eric"]
[WhiteFideId "46617116"]
[BlackFideId "2032562"]
[WhiteElo "2334"]
[BlackElo "2331"]
[Result "1-0"]
[Round "11"]
[TimeControl "180+2"]
[Date "2023.04.11"]
[WhiteClock "0:00:19"]
[BlackClock "0:00:01"]

1. Nf3 {[%clk 0:03:00]}  d5 {[%clk 0:03:00]} 2. g3 {[%clk 0:03:01]}  Nf6 {[%clk 0:02:59]} 3. Bg2 {[%clk 0:03:01]}  e6 {[%clk 0:02:58]} 4. O-O {[%clk 0:03:02]}  Be7 {[%clk 0:02:58]} 5. d4 {[%clk 0:02:57]}  b5 {[%clk 0:02:57]} 6. a4 {[%clk 0:02:55]}  b4 {[%clk 0:02:57]} 7. Ne5 {[%clk 0:02:51]}  O-O {[%clk 0:02:53]} 8. c4 {[%clk 0:02:50]}  bxc3 {[%clk 0:02:51]} 9. Nxc3 {[%clk 0:02:50]}  Nfd7 {[%clk 0:02:51]} 10. Nd3 {[%clk 0:02:46]}  Bb7 {[%clk 0:02:27]} 11. e4 {[%clk 0:02:39]}  dxe4 {[%clk 0:02:20]} 12. Nxe4 {[%clk 0:02:37]}  Bd5 {[%clk 0:02:14]} 13. Nf4 {[%clk 0:02:32]}  c6 {[%clk 0:02:09]} 14. Re1 {[%clk 0:02:23]}  a5 {[%clk 0:02:07]} 15. Bf1 {[%clk 0:02:20]}  Na6 {[%clk 0:02:06]} 16. Nc3 {[%clk 0:02:20]}  Nb4 {[%clk 0:02:06]} 17. Ncxd5 {[%clk 0:02:11]}  cxd5 {[%clk 0:02:05]} 18. Bd2 {[%clk 0:02:11]}  Qb6 {[%clk 0:02:03]} 19. Bb5 {[%clk 0:02:10]}  Rfd8 {[%clk 0:02:00]} 20. Bc3 {[%clk 0:01:46]}  Nf6 {[%clk 0:01:54]} 21. f3 {[%clk 0:01:46]}  Bd6 {[%clk 0:01:33]} 22. Nd3 {[%clk 0:01:41]}  Nxd3 {[%clk 0:01:34]} 23. Qxd3 {[%clk 0:01:40]}  e5 {[%clk 0:01:34]} 24. Kg2 {[%clk 0:01:24]}  e4 {[%clk 0:01:34]} 25. fxe4 {[%clk 0:01:21]}  dxe4 {[%clk 0:01:35]} 26. Qe2 {[%clk 0:01:16]}  Qb7 {[%clk 0:01:32]} 27. d5 {[%clk 0:01:10]}  Qxd5 {[%clk 0:01:03]} 28. Bxf6 {[%clk 0:01:08]}  gxf6 {[%clk 0:00:50]} 29. Qxe4 {[%clk 0:01:05]}  Qxe4+ {[%clk 0:00:44]} 30. Rxe4 {[%clk 0:01:06]}  Be5 {[%clk 0:00:45]} 31. Re2 {[%clk 0:01:06]}  Rd4 {[%clk 0:00:31]} 32. Rc1 {[%clk 0:01:02]}  Rb4 {[%clk 0:00:29]} 33. Rcc2 {[%clk 0:00:58]}  Rd8 {[%clk 0:00:29]} 34. Kh3 {[%clk 0:00:41]}  Rd1 {[%clk 0:00:29]} 35. Bc4 {[%clk 0:00:26]}  Rxa4 {[%clk 0:00:20]} 36. Bb3 {[%clk 0:00:25]}  Rb4 {[%clk 0:00:18]} 37. Rc8+ {[%clk 0:00:24]}  Kg7 {[%clk 0:00:18]} 38. Bxd1 {[%clk 0:00:24]}  Bxb2 {[%clk 0:00:11]} 39. Ree8 {[%clk 0:00:23]}  a4 {[%clk 0:00:08]} 40. Rg8+ {[%clk 0:00:23]}  Kh6 {[%clk 0:00:09]} 41. Rb8 {[%clk 0:00:20]}  Rxb8 {[%clk 0:00:02]} 42. Rxb8 {[%clk 0:00:21]}  a3 {[%clk 0:00:03]} 43. Bb3 {[%clk 0:00:20]}  Kg6 {[%clk 0:00:01]} 44. Rb7 {[%clk 0:00:19]} 1-0


[Site "https://www.chess.com"]

[Event "Titled Tuesday Blitz April 11 Early 2023"]
[White "Ioannidis, Evgenios"]
[Black "Kucuksari, Kaan"]
[WhiteFideId "4229274"]
[BlackFideId "6380166"]
[WhiteElo "2386"]
[BlackElo "2364"]
[Result "0-1"]
[Round "11"]
[TimeControl "180+2"]
[Date "2023.04.11"]
[WhiteClock "0:00:03"]
[BlackClock "0:00:31"]

1. d4 {[%clk 0:02:57]}  Nf6 {[%clk 0:02:59]} 2. c4 {[%clk 0:02:56]}  b6 {[%clk 0:02:58]} 3. Nf3 {[%clk 0:02:54]}  Bb7 {[%clk 0:02:59]} 4. a3 {[%clk 0:02:54]}  e6 {[%clk 0:02:58]} 5. Nc3 {[%clk 0:02:52]}  d5 {[%clk 0:02:59]} 6. Qc2 {[%clk 0:02:49]}  Nbd7 {[%clk 0:02:59]} 7. cxd5 {[%clk 0:02:49]}  exd5 {[%clk 0:03:00]} 8. Bf4 {[%clk 0:02:45]}  c6 {[%clk 0:02:34]} 9. e3 {[%clk 0:02:42]}  Be7 {[%clk 0:02:34]} 10. Bd3 {[%clk 0:02:42]}  Nh5 {[%clk 0:02:30]} 11. Be5 {[%clk 0:02:39]}  Nxe5 {[%clk 0:02:28]} 12. Nxe5 {[%clk 0:02:39]}  Nf6 {[%clk 0:02:25]} 13. O-O {[%clk 0:02:32]}  O-O {[%clk 0:02:24]} 14. f4 {[%clk 0:02:32]}  c5 {[%clk 0:02:21]} 15. Qf2 {[%clk 0:02:28]}  cxd4 {[%clk 0:01:58]} 16. exd4 {[%clk 0:02:29]}  Ne4 {[%clk 0:01:58]} 17. Bxe4 {[%clk 0:02:24]}  dxe4 {[%clk 0:01:59]} 18. Rfe1 {[%clk 0:02:18]}  f6 {[%clk 0:01:57]} 19. Ng4 {[%clk 0:02:17]}  f5 {[%clk 0:01:56]} 20. Ne5 {[%clk 0:02:17]}  Bh4 {[%clk 0:01:50]} 21. g3 {[%clk 0:02:16]}  Bf6 {[%clk 0:01:50]} 22. Rad1 {[%clk 0:02:15]}  Qe7 {[%clk 0:01:27]} 23. Qc2 {[%clk 0:02:11]}  Rad8 {[%clk 0:01:18]} 24. Qb3+ {[%clk 0:02:09]}  Kh8 {[%clk 0:01:19]} 25. Qb4 {[%clk 0:01:49]}  Qe8 {[%clk 0:01:13]} 26. Nb5 {[%clk 0:01:45]}  Qh5 {[%clk 0:01:05]} 27. Nc7 {[%clk 0:01:28]}  Bxe5 {[%clk 0:00:47]} 28. fxe5 {[%clk 0:01:26]}  f4 {[%clk 0:00:47]} 29. Rf1 {[%clk 0:01:12]}  e3 {[%clk 0:00:39]} 30. Ne6 {[%clk 0:00:27]}  Bd5 {[%clk 0:00:34]} 31. Nxd8 {[%clk 0:00:15]}  Rxd8 {[%clk 0:00:35]} 32. Qe7 {[%clk 0:00:07]}  Rg8 {[%clk 0:00:34]} 33. Qd6 {[%clk 0:00:03]}  fxg3 {[%clk 0:00:31]} 0-1


[Site "https://www.chess.com"]

[Event "Titled Tuesday Blitz April 11 Early 2023"]
[White "Csonka, Balazs"]
[Black "MKlose11"]
[WhiteFideId "742910"]
[WhiteElo "2404"]
[BlackElo "2592"]
[Result "0-1"]
[Round "11"]
[TimeControl "180+2"]
[Date "2023.04.11"]
[WhiteClock "0:00:04"]
[BlackClock "0:00:45"]

1. e4 {[%clk 0:03:00]}  e6 {[%clk 0:02:59]} 2. d4 {[%clk 0:02:58]}  d5 {[%clk 0:02:58]} 3. e5 {[%clk 0:02:59]}  c5 {[%clk 0:02:58]} 4. c3 {[%clk 0:02:59]}  Nc6 {[%clk 0:02:58]} 5. Nf3 {[%clk 0:02:59]}  Qb6 {[%clk 0:02:53]} 6. Be2 {[%clk 0:02:59]}  Bd7 {[%clk 0:02:53]} 7. O-O {[%clk 0:02:57]}  Rc8 {[%clk 0:02:53]} 8. dxc5 {[%clk 0:02:52]}  Bxc5 {[%clk 0:02:53]} 9. b4 {[%clk 0:02:51]}  Bf8 {[%clk 0:02:53]} 10. Bd3 {[%clk 0:02:40]}  f6 {[%clk 0:02:52]} 11. b5 {[%clk 0:02:11]}  Nxe5 {[%clk 0:02:28]} 12. Nxe5 {[%clk 0:02:11]}  fxe5 {[%clk 0:02:29]} 13. Qh5+ {[%clk 0:02:08]}  Kd8 {[%clk 0:02:29]} 14. Qxe5 {[%clk 0:01:32]}  Nf6 {[%clk 0:02:28]} 15. Bg5 {[%clk 0:01:20]}  Bd6 {[%clk 0:02:13]} 16. Qe2 {[%clk 0:01:15]}  Kc7 {[%clk 0:02:07]} 17. a4 {[%clk 0:01:14]}  Kb8 {[%clk 0:02:04]} 18. a5 {[%clk 0:01:08]}  Qc7 {[%clk 0:02:04]} 19. h3 {[%clk 0:01:05]}  e5 {[%clk 0:02:01]} 20. b6 {[%clk 0:00:48]}  Qc6 {[%clk 0:01:50]} 21. a6 {[%clk 0:00:33]}  Qxb6 {[%clk 0:01:32]} 22. axb7 {[%clk 0:00:32]}  Rc7 {[%clk 0:01:21]} 23. Ra6 {[%clk 0:00:23]}  Qc5 {[%clk 0:01:12]} 24. Be3 {[%clk 0:00:19]}  d4 {[%clk 0:01:11]} 25. cxd4 {[%clk 0:00:15]}  exd4 {[%clk 0:01:12]} 26. Bd2 {[%clk 0:00:09]}  Bc6 {[%clk 0:01:10]} 27. Rc1 {[%clk 0:00:07]}  Qd5 {[%clk 0:01:04]} 28. f3 {[%clk 0:00:07]}  Bxb7 {[%clk 0:01:01]} 29. Rxc7 {[%clk 0:00:05]}  Bxc7 {[%clk 0:01:02]} 30. Ra1 {[%clk 0:00:04]}  Re8 {[%clk 0:01:01]} 31. Qf2 {[%clk 0:00:04]}  Qe5 {[%clk 0:00:58]} 32. f4 {[%clk 0:00:04]}  Qd5 {[%clk 0:00:57]} 33. Na3 {[%clk 0:00:04]}  Ne4 {[%clk 0:00:57]} 34. Bxe4 {[%clk 0:00:04]}  Qxe4 {[%clk 0:00:58]} 35. Re1 {[%clk 0:00:03]}  Qg6 {[%clk 0:00:55]} 36. Rxe8+ {[%clk 0:00:03]}  Qxe8 {[%clk 0:00:56]} 37. Nc2 {[%clk 0:00:03]}  d3 {[%clk 0:00:49]} 38. Nd4 {[%clk 0:00:03]}  Bb6 {[%clk 0:00:48]} 39. Be3 {[%clk 0:00:03]}  Qe4 {[%clk 0:00:48]} 40. f5 {[%clk 0:00:04]}  Ka8 {[%clk 0:00:46]} 41. Kh1 {[%clk 0:00:04]}  a5 {[%clk 0:00:46]} 42. f6 {[%clk 0:00:04]}  gxf6 {[%clk 0:00:46]} 43. Qxf6 {[%clk 0:00:04]}  Qxg2# {[%clk 0:00:45]} 0-1


[Site "https://www.chess.com"]

[Event "Titled Tuesday Blitz April 11 Early 2023"]
[White "Kosteniuk, Alexandra"]
[Black "Shevtchenko, Olesya"]
[WhiteFideId "4128125"]
[BlackFideId "24131890"]
[WhiteElo "2453"]
[BlackElo "2003"]
[Result "0-1"]
[Round "11"]
[TimeControl "180+2"]
[Date "2023.04.11"]
[WhiteClock "0:00:03"]
[BlackClock "0:00:05"]

1. b3 {[%clk 0:03:00]}  e5 {[%clk 0:02:53]} 2. Bb2 {[%clk 0:03:01]}  Nc6 {[%clk 0:02:53]} 3. c4 {[%clk 0:03:01]}  g6 {[%clk 0:02:46]} 4. Nc3 {[%clk 0:02:55]}  Bg7 {[%clk 0:02:46]} 5. e3 {[%clk 0:02:55]}  Nge7 {[%clk 0:02:46]} 6. h4 {[%clk 0:02:55]}  h6 {[%clk 0:02:44]} 7. h5 {[%clk 0:02:55]}  g5 {[%clk 0:02:44]} 8. Nd5 {[%clk 0:02:51]}  Nxd5 {[%clk 0:02:40]} 9. cxd5 {[%clk 0:02:52]}  Ne7 {[%clk 0:02:40]} 10. e4 {[%clk 0:02:43]}  d6 {[%clk 0:02:32]} 11. d4 {[%clk 0:02:43]}  exd4 {[%clk 0:02:11]} 12. Bxd4 {[%clk 0:02:41]}  O-O {[%clk 0:02:11]} 13. Bxg7 {[%clk 0:02:38]}  Kxg7 {[%clk 0:02:12]} 14. Nf3 {[%clk 0:02:35]}  f6 {[%clk 0:02:11]} 15. Bc4 {[%clk 0:02:29]}  Bg4 {[%clk 0:02:10]} 16. Qd4 {[%clk 0:02:14]}  Qe8 {[%clk 0:02:03]} 17. Nd2 {[%clk 0:02:07]}  Bxh5 {[%clk 0:01:41]} 18. f3 {[%clk 0:02:07]}  Nf5 {[%clk 0:01:24]} 19. Qc3 {[%clk 0:01:54]}  Nh4 {[%clk 0:01:09]} 20. g4 {[%clk 0:01:00]}  Bg6 {[%clk 0:01:01]} 21. Kf2 {[%clk 0:00:43]}  Qe5 {[%clk 0:00:54]} 22. Qxe5 {[%clk 0:00:43]}  fxe5 {[%clk 0:00:53]} 23. Kg3 {[%clk 0:00:42]}  Rf7 {[%clk 0:00:51]} 24. Be2 {[%clk 0:00:43]}  Raf8 {[%clk 0:00:50]} 25. Rac1 {[%clk 0:00:40]}  Re7 {[%clk 0:00:47]} 26. Rc3 {[%clk 0:00:39]}  Rff7 {[%clk 0:00:40]} 27. b4 {[%clk 0:00:38]}  Bh7 {[%clk 0:00:39]} 28. Rxh4 {[%clk 0:00:38]}  gxh4+ {[%clk 0:00:39]} 29. Kxh4 {[%clk 0:00:39]}  Kf8 {[%clk 0:00:37]} 30. Nf1 {[%clk 0:00:38]}  Bg6 {[%clk 0:00:36]} 31. Ng3 {[%clk 0:00:38]}  Ke8 {[%clk 0:00:32]} 32. a4 {[%clk 0:00:33]}  Kd8 {[%clk 0:00:32]} 33. a5 {[%clk 0:00:31]}  Rf4 {[%clk 0:00:20]} 34. Kh3 {[%clk 0:00:21]}  h5 {[%clk 0:00:15]} 35. g5 {[%clk 0:00:10]}  Rg7 {[%clk 0:00:11]} 36. Bd1 {[%clk 0:00:08]}  Be8 {[%clk 0:00:11]} 37. Ne2 {[%clk 0:00:06]}  Bd7+ {[%clk 0:00:09]} 38. Kh2 {[%clk 0:00:03]}  Rh4+ {[%clk 0:00:08]} 39. Kg3 {[%clk 0:00:04]}  Rh3+ {[%clk 0:00:08]} 40. Kf2 {[%clk 0:00:04]}  Rh2+ {[%clk 0:00:08]} 41. Kg1 {[%clk 0:00:03]}  Rh3 {[%clk 0:00:07]} 42. f4 {[%clk 0:00:02]}  Rxc3 {[%clk 0:00:04]} 43. Nxc3 {[%clk 0:00:03]}  exf4 {[%clk 0:00:05]} 44. Kh2 {[%clk 0:00:02]}  Rxg5 {[%clk 0:00:05]} 45. Bf3 {[%clk 0:00:03]}  Rg3 {[%clk 0:00:05]} 0-1


[Site "https://www.chess.com"]

[Event "Titled Tuesday Blitz April 11 Early 2023"]
[White "Zhu, Jiner"]
[Black "Odegov, Artem"]
[WhiteFideId "8608059"]
[BlackFideId "34183644"]
[WhiteElo "2384"]
[BlackElo "2300"]
[Result "1-0"]
[Round "11"]
[TimeControl "180+2"]
[Date "2023.04.11"]
[WhiteClock "0:02:26"]
[BlackClock "0:02:16"]

1. e4 {[%clk 0:03:00]}  c5 {[%clk 0:02:56]} 2. Nf3 {[%clk 0:03:00]}  e6 {[%clk 0:02:55]} 3. d4 {[%clk 0:03:00]}  cxd4 {[%clk 0:02:56]} 4. Nxd4 {[%clk 0:03:01]}  Nf6 {[%clk 0:02:57]} 5. Nc3 {[%clk 0:03:01]}  Nc6 {[%clk 0:02:57]} 6. Nxc6 {[%clk 0:02:59]}  bxc6 {[%clk 0:02:58]} 7. e5 {[%clk 0:03:00]}  Nd5 {[%clk 0:02:58]} 8. Ne4 {[%clk 0:03:00]}  Qc7 {[%clk 0:02:58]} 9. f4 {[%clk 0:03:00]}  Rb8 {[%clk 0:02:58]} 10. a3 {[%clk 0:02:59]}  f5 {[%clk 0:02:56]} 11. exf6 {[%clk 0:02:59]}  Nxf6 {[%clk 0:02:56]} 12. Nxf6+ {[%clk 0:02:59]}  gxf6 {[%clk 0:02:57]} 13. Qh5+ {[%clk 0:02:57]}  Kd8 {[%clk 0:02:57]} 14. Bd3 {[%clk 0:02:44]}  Qb6 {[%clk 0:02:42]} 15. Bd2 {[%clk 0:02:29]}  Be7 {[%clk 0:02:16]} 16. Ba5 {[%clk 0:02:26]} 1-0


[Site "https://www.chess.com"]